bitfinex/quotes_ETHUSD_20251019
["timestamp","ask_amount","ask_price","bid_price","bid_amount"]
[1760868679784,0.001,3916.2,3916.1,4.91516094]
[1760868679986,0.001,3916.2,3915.3,0.2126]
[1760868680158,0.4579,3916.2,3915.3,0.2126]
[1760868680576,0.7591349,3916.2,3915.3,0.2126]
[1760868680792,0.4579,3916.2,3915.3,2.76662233]
[1760868680992,0.001,3916.2,3915.4,0.4668]
[1760868681194,0.001,3916.2,3916.1,2.55356094]
[1760868681408,0.001,3916.2,3915.9,2.691]
[1760868681584,0.001,3916.2,3916.1,2.55356094]
[1760868681785,0.001,3916.2,3915.9,2.691]
[1760868682074,0.001,3916.2,3916.1,2.55356094]
[1760868682489,0.001,3916.2,3916.1,3.02036094]
[1760868682814,0.001,3916.2,3916.1,3.65396094]
[1760868683108,0.001,3916.2,3916.1,5.71136094]
[1760868683728,0.001,3916.2,3916.1,2.691]
[1760868684083,0.001,3916.2,3916.1,5.71136094]
[1760868684721,0.001,3916.2,3916.1,6.34496094]
[1760868686982,0.001,3916.2,3916.1,0.6336]
[1760868687203,0.001,3916.2,3916.0,2.69]
[1760868687403,0.001,3916.2,3915.3,4.49465157]
[1760868687717,0.001,3916.2,3915.6,2.55388701]
[1760868688093,0.001,3916.2,3915.7,2.55382044]
[1760868688494,0.001,3916.2,3915.8,2.55375295]
[1760868688689,0.001,3916.2,3915.9,2.55367126]
[1760868688891,0.001,3916.2,3915.9,2.55366428]
[1760868689099,0.001,3916.2,3916.1,2.55356094]
[1760868689917,0.001,3916.2,3916.1,2.68076094]
[1760868690218,0.001,3916.2,3916.1,0.1272]
[1760868693311,0.001,3916.2,3916.1,3.02036094]
[1760868693590,0.4579,3916.2,3916.1,3.869]
[1760868694191,0.001,3916.2,3915.5,0.6336]
[1760868694393,0.4569,3916.1,3915.4,2.688]
[1760868694719,0.4569,3916.0,3915.3,2.5540237]
[1760868694923,0.2196,3915.9,3915.1,5.45475306]
[1760868695130,0.6675,3915.9,3915.1,5.24215306]
[1760868695321,0.6675,3915.9,3915.1,2.9006]
[1760868695491,0.6675,3915.9,3915.1,5.45480198]
[1760868695688,0.6675,3915.9,3915.1,2.9006]
[1760868696125,0.6675,3915.9,3915.2,2.55414504]
[1760868696501,2.55375657,3915.8,3915.1,2.688]
[1760868696901,0.98971597,3915.9,3914.4,2.55460647]
[1760868696902,2.55388701,3915.6,3914.4,2.55460647]
[1760868697100,2.55388701,3915.6,3914.7,2.55444829]
[1760868697101,0.4479,3915.5,3914.7,2.55444829]
[1760868697301,2.26981597,3915.9,3914.6,2.55453044]
[1760868697532,2.26981597,3915.9,3914.5,2.687]
[1760868697533,0.54181597,3915.9,3914.5,2.687]
[1760868697734,2.55388612,3915.7,3914.7,2.55445783]
[1760868697903,3.00180058,3915.6,3914.5,2.687]
[1760868698227,0.4479,3915.5,3914.2,3.18839551]
[1760868698530,3.00192305,3915.4,3914.6,2.687]
[1760868698734,2.55432786,3915.0,3914.1,0.1292]
[1760868699031,2.55471507,3914.4,3913.7,2.687]
[1760868699234,0.4479,3914.4,3913.2,0.1371]
[1760868699410,2.55474449,3914.3,3913.7,2.687]
[1760868699618,2.55486083,3914.2,3913.4,2.687]
[1760868699941,2.55486083,3914.2,3913.4,5.24231541]
[1760868700102,0.4479,3914.4,3913.4,2.687]
[1760868700306,0.4479,3914.4,3913.7,2.55507138]
[1760868700905,4.28237661,3914.9,3913.6,0.4419]
[1760868700906,1.728,3914.9,3913.6,0.4419]
[1760868701436,0.04450869,3915.3,3914.5,2.55458608]
[1760868701606,0.04450869,3915.3,3914.9,2.55431265]
[1760868701807,0.04450869,3915.3,3914.8,0.1292]
[1760868702124,1.728,3915.7,3914.8,0.1292]
[1760868702321,0.76361997,3915.6,3914.8,0.1292]
[1760868702738,0.001,3916.2,3914.9,2.687]
[1760868702912,0.001,3916.2,3914.9,5.6832151]
[1760868703239,0.001,3916.2,3915.5,2.55390415]
[1760868703414,0.001,3916.2,3916.1,0.1272]
[1760868704117,0.4489,3916.2,3916.1,0.1272]
[1760868704314,2.55356197,3916.1,3915.5,2.687]
[1760868704514,4.73040278,3916.2,3915.8,0.1272]
[1760868704719,2.55383012,3915.7,3915.1,2.686]
[1760868704927,0.2196,3915.9,3915.4,0.1272]
[1760868705128,3.00165657,3915.8,3915.4,0.1272]
[1760868705330,0.4479,3915.7,3915.4,0.1272]
[1760868705536,0.2196,3915.9,3915.2,0.1272]
[1760868705537,3.00178701,3915.6,3915.2,0.1272]
[1760868705708,3.00185356,3915.5,3915.2,0.1272]
[1760868705904,0.4479,3915.4,3915.2,0.1272]
[1760868706128,2.90049279,3915.9,3915.2,0.1272]
[1760868706329,0.51142531,3915.8,3915.2,0.1272]
[1760868706537,2.553895,3915.6,3915.2,0.1272]
[1760868706842,2.5540827,3915.3,3915.2,0.1272]
[1760868707346,2.5227,3915.9,3915.2,0.1272]
[1760868707680,2.55399555,3915.5,3915.2,0.1272]
[1760868707844,0.4479,3915.5,3915.2,0.1272]
[1760868708144,0.4479,3915.4,3915.2,0.1272]
[1760868708541,0.3468,3915.9,3915.2,0.1272]
[1760868708852,2.5540827,3915.3,3915.2,0.1272]
[1760868709010,0.47608,3915.8,3915.1,0.1292]
[1760868709211,0.47608,3915.8,3915.6,0.1272]
[1760868709807,0.4479,3915.7,3915.6,0.1272]
[1760868710142,0.47608,3915.8,3915.6,0.1272]
[1760868710444,0.2196,3915.9,3915.6,0.1272]
[1760868710651,0.001,3915.8,3915.6,0.1272]
[1760868712862,3.00172179,3915.7,3915.6,0.1272]
[1760868713559,0.001,3915.8,3915.6,0.1272]
[1760868715272,0.001,3915.8,3915.7,3.869]
[1760868716853,0.001,3915.8,3915.5,2.55389788]
[1760868717152,0.001,3915.8,3915.7,2.55382179]
[1760868717552,0.001,3915.8,3915.7,2.99572179]
[1760868717873,0.001,3915.8,3915.6,2.684]
[1760868718662,0.001,3915.8,3915.6,3.1259]
[1760868718862,0.001,3915.8,3915.6,2.684]
[1760868719963,0.001,3915.8,3915.7,2.55382179]
[1760868720758,0.001,3915.8,3915.7,2.99572179]
[1760868721171,0.001,3915.8,3915.7,3.62932179]
[1760868721738,0.001,3915.8,3915.7,5.35732179]
[1760868722364,0.001,3915.8,3915.7,8.04032179]
[1760868724078,0.001,3915.8,3915.7,5.35732179]
[1760868724367,0.001,3915.8,3915.7,0.6336]
[1760868724671,0.001,3915.8,3914.4,0.4356]
[1760868724872,0.4743,3915.7,3914.4,0.4356]
[1760868725057,0.4743,3915.7,3914.4,2.1636]
[1760868725240,0.4743,3915.7,3914.5,1.622]
[1760868725437,0.001,3915.8,3915.6,0.1272]
[1760868726266,0.4743,3915.7,3915.6,0.1272]
[1760868727670,0.4743,3915.7,3915.0,0.1272]
[1760868727671,0.1272,3915.6,3915.0,0.1272]
[1760868727871,0.2322,3915.1,3913.5,1e-08]
[1760868728069,0.2322,3915.1,3914.3,0.1272]
[1760868728070,2.55446147,3914.8,3914.3,0.1272]
[1760868728253,0.4743,3914.7,3914.3,0.1272]
[1760868728454,0.4743,3914.6,3914.3,0.1272]
[1760868728666,2.55434676,3914.9,3914.3,0.1272]
[1760868729062,3.02871221,3914.8,3914.3,0.1272]
[1760868729269,0.4743,3914.7,3914.3,0.1272]
[1760868729466,2.55466993,3914.4,3914.3,0.1272]
[1760868729664,3.02896993,3914.4,3914.3,0.1272]
[1760868730085,3.02896993,3914.4,3913.9,0.1272]
[1760868730086,2.5547352,3914.3,3913.9,0.1272]
[1760868730460,0.4575,3914.2,3913.9,0.1272]
[1760868730656,0.4575,3914.1,3913.9,0.1272]
[1760868730975,2.55441081,3914.8,3913.9,0.1272]
[1760868731158,2.55441081,3914.8,3913.5,1e-08]
[1760868731159,0.4575,3914.5,3914.3,0.1272]
[1760868731491,3.01197729,3914.7,3914.3,0.1272]
[1760868731676,0.4575,3914.4,3914.3,0.1272]
[1760868732259,3.01216993,3914.4,3913.5,2.55519624]
[1760868732471,3.01216993,3914.4,3914.1,0.1272]
[1760868732659,0.4575,3914.3,3914.1,0.1272]
[1760868733194,0.4575,3914.2,3914.1,0.1272]
[1760868733893,3.01230047,3914.2,3913.7,0.1272]
[1760868734087,0.2211,3913.8,3913.7,0.1272]
[1760868734293,0.6786,3913.8,3913.7,0.1272]
[1760868734491,0.6786,3913.8,3913.5,1e-08]
[1760868734658,0.2211,3913.8,3913.5,1e-08]
[1760868734975,2.55519215,3913.6,3913.5,1e-08]
[1760868735172,3.14679907,3913.6,3913.5,1e-08]
[1760868735374,3.60429907,3913.6,3913.5,1e-08]
[1760868736486,2.77616505,3913.8,3913.5,0.12720001]
[1760868736685,0.4575,3913.7,3913.5,0.12720001]
[1760868736886,3.01263582,3913.7,3913.5,0.12720001]
[1760868737182,0.4575,3913.6,3913.5,0.12720001]
[1760868737505,0.2211,3913.8,3913.5,0.12720001]
[1760868737710,0.6786,3913.8,3913.5,0.12720001]
[1760868737896,2.55519215,3913.6,3913.5,1e-08]
[1760868738070,0.4575,3913.7,3913.5,1e-08]
[1760868738272,0.3483,3913.8,3913.5,1e-08]
[1760868738493,0.4575,3913.7,3913.5,1e-08]
[1760868738693,0.2211,3913.8,3913.6,0.1272]
[1760868738996,0.4575,3913.7,3913.5,1e-08]
[1760868739195,2.55519215,3913.6,3913.5,1e-08]
[1760868739372,3.27399842,3913.6,3913.5,1e-08]
[1760868739574,1.17630627,3913.6,3913.5,1e-08]
[1760868739777,3.73149842,3913.6,3913.5,1e-08]
[1760868739976,0.4575,3913.6,3913.5,1e-08]
[1760868740662,3.01269215,3913.6,3913.5,1e-08]
[1760868741492,0.4575,3913.6,3913.5,1e-08]
[1760868741801,3.01269215,3913.6,3913.5,1e-08]
[1760868741987,3.4278992,3913.6,3913.5,1e-08]
[1760868742377,0.87270705,3913.6,3913.5,1e-08]
[1760868742689,2.55507071,3913.8,3913.5,1e-08]
[1760868742888,1.728,3913.9,3913.5,1e-08]
[1760868743191,4.28300897,3913.9,3913.5,1e-08]
[1760868743394,2.55506665,3913.8,3913.5,1e-08]
[1760868743698,2.68213587,3914.0,3913.5,1e-08]
[1760868743901,0.2211,3914.4,3913.5,1e-08]
[1760868744198,1.805,3915.0,3913.9,0.1272]
[1760868744369,4.35928239,3915.0,3914.3,0.1272]
[1760868744570,1.805,3915.0,3914.3,0.1272]
[1760868744892,4.05061095,3915.0,3914.3,0.1272]
[1760868745488,2.32261095,3915.0,3914.3,0.1272]
[1760868745670,4.05061095,3915.0,3914.3,0.1272]
[1760868746402,2.55434774,3914.9,3914.3,0.1272]
[1760868747191,6.604898,3915.0,3914.3,0.1272]
[1760868747370,2.32261095,3915.0,3914.3,0.1272]
[1760868747573,2.68,3915.5,3914.5,2.55454798]
[1760868747767,2.8072,3915.5,3914.8,0.1272]
[1760868748003,1.728,3915.4,3914.8,0.1272]
[1760868748209,0.001,3915.7,3915.4,0.1292]
[1760868748374,0.001,3915.7,3915.6,4.91548701]
[1760868748678,0.001,3915.7,3915.6,5.61648701]
[1760868748885,0.001,3915.7,3915.6,4.28188701]
[1760868749099,0.001,3915.7,3915.4,0.1292]
[1760868749292,0.001,3915.7,3915.5,3.46394309]
[1760868749513,0.001,3915.7,3915.5,0.91]
[1760868749819,0.001,3915.7,3915.5,2.5539394]
[1760868750174,0.001,3915.7,3915.6,2.55388701]
[1760868751206,0.001,3915.7,3915.6,3.63918701]
[1760868751382,0.001,3915.7,3915.6,5.36718701]
[1760868753980,0.001,3915.7,3915.6,4.91548701]
[1760868754184,0.001,3915.7,3915.6,7.59348701]
[1760868754807,0.001,3915.7,3915.6,4.91548701]
[1760868755316,0.001,3915.7,3915.1,0.1292]
[1760868755516,0.001,3915.7,3914.9,2.678]
[1760868755517,0.459,3915.6,3914.9,2.678]
[1760868755830,0.459,3915.6,3915.0,2.678]
[1760868755982,0.001,3915.7,3915.2,2.55414577]
[1760868756186,0.001,3915.7,3915.2,2.55413526]
[1760868756414,0.459,3915.6,3915.0,2.55427841]
[1760868756829,0.459,3915.6,3915.1,2.55419583]
[1760868756987,0.459,3915.6,3914.9,2.678]
[1760868757184,0.459,3915.6,3915.0,2.55427225]
[1760868757612,0.459,3915.5,3914.7,2.55446238]
[1760868757814,2.5539127,3915.6,3912.8,2.55565564]
[1760868758122,0.459,3915.4,3914.7,2.55447176]
[1760868758319,0.459,3915.4,3914.9,0.1272]
[1760868758617,0.25559127,3915.5,3915.2,0.1272]
[1760868758817,0.71459127,3915.5,3915.2,0.1272]
[1760868759007,0.459,3915.4,3915.2,0.1272]
[1760868759198,0.459,3915.3,3915.2,0.1272]
[1760868759917,0.459,3915.3,3914.5,2.677]
[1760868760117,0.459,3915.3,3914.7,0.1272]
[1760868760319,0.1272,3915.4,3914.7,2.68161683]
[1760868760632,3.14103348,3915.7,3915.0,0.1272]
[1760868760832,0.001,3915.6,3915.0,0.1272]
[1760868761219,0.001,3915.6,3915.1,2.55418024]
[1760868761390,0.001,3915.6,3915.5,0.1272]
[1760868761837,0.46,3915.6,3915.5,0.1272]
[1760868762600,0.001,3915.6,3915.5,0.1272]
[1760868762804,0.46,3915.6,3915.5,0.1272]
[1760868763119,0.46,3915.6,3915.1,0.1272]
[1760868763423,0.459,3915.5,3915.1,0.1272]
[1760868763793,0.459,3915.4,3915.1,0.1272]
[1760868764010,0.459,3915.3,3915.1,0.1272]
[1760868764394,0.001,3915.6,3915.1,0.1272]
[1760868764725,0.459,3915.5,3915.1,0.1272]
[1760868765018,3.01302972,3915.4,3915.1,0.1272]
[1760868765223,3.01311559,3915.3,3915.1,0.1272]
[1760868765527,0.459,3915.2,3915.1,0.1272]
[1760868765705,2.55395659,3915.5,3915.1,0.1272]
[1760868765901,0.52379208,3915.5,3915.1,0.1272]
[1760868766113,0.001,3915.6,3915.1,0.1272]
[1760868766312,0.001,3915.6,3915.4,0.1272]
[1760868770429,0.459,3915.5,3915.4,0.1272]
[1760868770590,3.01295224,3915.5,3915.4,0.1272]
[1760868770795,3.01295224,3915.5,3915.2,3.9962]
[1760868770991,3.11093163,3915.5,3915.2,3.9962]
[1760868771208,3.01303148,3915.4,3915.2,3.9962]
[1760868771407,0.459,3915.3,3915.2,3.9962]
[1760868771811,0.55697939,3915.5,3915.2,3.9962]
[1760868772023,0.459,3915.4,3915.2,3.9962]
[1760868772329,2.55489293,3915.6,3915.2,3.9962]
[1760868772628,3.01295347,3915.5,3915.2,3.9962]
[1760868772832,0.459,3915.4,3915.2,3.9962]
[1760868773006,2.5540827,3915.3,3915.2,3.869]
[1760868773328,3.0130827,3915.3,3915.2,3.869]
[1760868773527,0.459,3915.3,3915.2,3.869]
[1760868774731,0.1282,3915.6,3915.2,3.869]
[1760868775037,3.01296324,3915.5,3915.2,3.869]
[1760868775260,0.459,3915.5,3915.2,3.869]
[1760868775736,3.01296659,3915.5,3915.2,3.869]
[1760868775922,2.55396659,3915.5,3915.2,3.869]
[1760868776532,2.55402732,3915.4,3915.0,0.1272]
[1760868777134,3.01296817,3915.5,3915.0,0.1272]
[1760868777507,2.5540161,3915.5,3915.0,0.1272]
[1760868777707,0.459,3915.4,3915.0,0.1272]
[1760868777953,0.459,3915.3,3915.0,0.1272]
[1760868778239,2.55395224,3915.5,3915.0,0.1272]
[1760868778609,0.459,3915.4,3915.0,0.1272]
[1760868778809,0.459,3915.3,3915.0,0.1272]
[1760868779011,3.01309345,3915.3,3915.0,0.1272]
[1760868779220,0.459,3915.2,3915.0,0.1272]
[1760868779745,0.459,3915.1,3915.0,0.1272]
[1760868780241,1.0157207,3915.1,3914.2,2.675]
[1760868780436,2.55427841,3915.0,3914.2,2.675]
[1760868780624,2.5544905,3914.7,3914.1,0.2126]
[1760868780823,2.55441818,3914.8,3914.0,2.675]
[1760868781024,0.001,3915.5,3914.1,0.6527]
[1760868781238,2.55402738,3915.4,3914.6,2.55448521]
[1760868781442,2.55496017,3915.5,3914.7,0.4401]
[1760868781936,2.55496017,3915.5,3914.6,5.22948521]
[1760868782314,2.55496017,3915.5,3914.7,2.5544707]
[1760868783553,2.55496017,3915.5,3914.6,5.22951234]
[1760868784149,0.459,3915.4,3914.6,2.675]
[1760868784452,0.459,3915.4,3913.5,1e-08]
[1760868784453,0.2341,3914.7,3913.5,1e-08]
[1760868784616,2.78929215,3913.6,3913.5,1e-08]
[1760868785043,3.26289215,3913.6,3913.5,1e-08]
[1760868785247,3.84469116,3913.6,3913.5,1e-08]
[1760868786666,5.57269116,3913.6,3913.5,1e-08]
[1760868786869,2.30979901,3913.6,3913.5,1e-08]
[1760868787068,1.728,3913.6,3913.5,1e-08]
[1760868787966,4.75679215,3913.6,3913.5,1e-08]
[1760868789034,2.674,3913.7,3913.5,1e-08]
[1760868789656,1.728,3914.0,3913.5,1e-08]
[1760868789865,4.28293369,3914.0,3913.5,1e-08]
[1760868790064,2.675,3914.1,3913.5,1e-08]
[1760868790241,2.8022,3914.1,3913.5,1e-08]
[1760868790772,0.4628,3914.0,3913.5,1e-08]
[1760868790971,2.55513736,3913.7,3913.5,1e-08]
[1760868791466,2.55519215,3913.6,3913.5,1e-08]
[1760868791672,3.01799215,3913.6,3913.5,1e-08]
[1760868791977,3.14519215,3913.6,3913.5,1e-08]
[1760868792143,3.71522085,3913.6,3913.5,1e-08]
[1760868793159,5.44322085,3913.6,3913.5,1e-08]
[1760868797238,5.44422085,3913.6,3913.5,1e-08]
[1760868798064,4.98142085,3913.6,3913.5,1e-08]
[1760868798262,5.44422085,3913.6,3913.5,1e-08]
[1760868798487,4.98142085,3913.6,3913.5,1e-08]
[1760868798771,5.44422085,3913.6,3913.5,1e-08]
[1760868806878,5.31702085,3913.6,3913.5,1e-08]
[1760868807893,5.95062085,3913.6,3913.5,1e-08]
[1760868812303,6.27441167,3913.6,3913.5,1e-08]
[1760868812492,6.98444197,3913.6,3913.5,1e-08]
[1760868813466,9.65644197,3913.6,3913.5,1e-08]
[1760868814489,5.36155667,3913.6,3913.5,1e-08]
[1760868814695,8.03355667,3913.6,3913.5,1e-08]
[1760868814904,8.66715667,3913.6,3913.5,1e-08]
[1760868818285,5.84275667,3913.6,3913.5,1e-08]
[1760868818497,5.22819215,3913.6,3913.5,1e-08]
[1760868818894,4.28419215,3913.6,3913.5,1e-08]
[1760868819090,6.95619215,3913.6,3913.5,1e-08]
[1760868819423,6.95619215,3913.6,3913.5,0.45660001]
[1760868819789,6.95619215,3913.6,3913.5,1e-08]
[1760868820356,6.95619215,3913.6,3913.5,0.45660001]
[1760868820916,6.95619215,3913.6,3913.5,1e-08]
[1760868821234,7.90732084,3913.6,3913.5,1e-08]
[1760868821905,6.95619215,3913.6,3913.5,1e-08]
[1760868822112,6.95619215,3913.6,3913.5,0.45660001]
[1760868822313,4.44552603,3913.6,3913.5,0.45660001]
[1760868822515,2.84472603,3913.6,3913.5,0.45660001]
[1760868822717,0.17272603,3913.6,3913.5,0.45660001]
[1760868823234,0.04552603,3913.6,3913.5,0.45660001]
[1760868823806,0.001,3913.6,3913.5,0.45660001]
[1760868827029,0.001,3913.6,3913.5,1e-08]
[1760868827413,0.001,3913.6,3913.5,0.45660001]
[1760868829029,0.001,3913.6,3913.5,1e-08]
[1760868829339,0.001,3913.6,3913.5,0.45660001]
[1760868829523,0.001,3913.6,3913.5,1e-08]
[1760868830256,2.55619215,3913.6,3913.5,1e-08]
[1760868830549,0.001,3913.6,3913.5,0.45660001]
[1760868831156,0.001,3913.6,3913.5,3.01185745]
[1760868833955,0.001,3913.6,3913.5,3.13905745]
[1760868836552,0.001,3913.6,3913.5,5.80805745]
[1760868836747,0.001,3913.6,3913.5,3.13905745]
[1760868836916,0.001,3913.6,3913.5,5.35145745]
[1760868837118,0.001,3913.6,3913.5,5.80805745]
[1760868837451,0.001,3913.6,3913.5,3.13905745]
[1760868838211,0.001,3913.6,3913.5,1e-08]
[1760868840342,3.02459215,3913.6,3913.5,1e-08]
[1760868840654,3.32705137,3913.6,3913.5,1e-08]
[1760868840850,0.77185922,3913.6,3913.5,1e-08]
[1760868841150,0.001,3913.6,3913.5,1e-08]
[1760868841948,0.4694,3913.6,3913.5,1e-08]
[1760868842150,0.001,3913.6,3913.5,1e-08]
[1760868842836,0.4694,3913.6,3913.5,1e-08]
[1760868846358,0.001,3913.6,3913.5,1e-08]
[1760868848429,0.4342,3913.6,3913.5,1e-08]
[1760868848625,4.71739215,3913.6,3913.5,1e-08]
[1760868848826,6.37820243,3913.6,3913.5,1e-08]
[1760868849031,6.68742565,3913.6,3913.5,1e-08]
[1760868850255,6.07824042,3913.6,3913.5,1e-08]
[1760868851863,8.74524042,3913.6,3913.5,1e-08]
[1760868852031,8.7897758,3913.6,3913.5,1e-08]
[1760868854961,5.4891758,3913.6,3913.5,1e-08]
[1760868855140,8.1551758,3913.6,3913.5,1e-08]
[1760868856978,9.39796103,3913.6,3913.5,1e-08]
[1760868857136,12.44301313,3913.6,3913.5,1e-08]
[1760868858439,12.84387538,3913.6,3913.5,1e-08]
[1760868860465,5.88305333,3913.2,3913.1,0.002]
[1760868860665,10.66684867,3913.2,3913.1,0.002]
[1760868860869,11.79962399,3913.2,3913.1,0.002]
[1760868861047,12.2005726,3913.2,3913.1,0.002]
[1760868863051,2.55728314,3910.4,3910.3,0.4304]
[1760868863273,5.22328314,3910.4,3910.3,0.4304]
[1760868864759,2.666,3910.4,3910.3,0.4304]
[1760868865674,2.7932,3910.4,3910.3,0.4304]
[1760868866080,0.1272,3910.7,3910.3,0.4304]
[1760868866278,0.12209415,3911.0,3910.3,0.4304]
[1760868866279,0.12209415,3911.0,3910.4,2.55728314]
[1760868866478,0.12209415,3911.0,3910.6,0.1272]
[1760868866680,0.12209415,3911.0,3910.7,0.4304]
[1760868866977,4.394,3911.1,3910.7,0.4304]
[1760868867164,1.8552,3911.3,3910.7,0.4304]
[1760868867361,4.5212,3911.3,3911.2,0.2126]
[1760868867561,4.5212,3911.3,3911.2,0.643]
[1760868867761,7.0778947,3911.3,3911.2,0.643]
[1760868867956,4.5212,3911.3,3911.2,0.643]
[1760868868162,4.4118947,3911.3,3911.2,0.643]
[1760868868358,7.0778947,3911.3,3911.2,0.643]
[1760868870959,0.1272,3911.3,3911.2,0.643]
[1760868871159,0.04455086,3911.9,3911.2,0.643]
[1760868871380,0.042,3912.5,3911.3,0.4304]
[1760868871589,2.55610359,3912.3,3911.3,0.4304]
[1760868871758,1.77,3912.4,3912.2,0.1292]
[1760868871958,0.001,3913.2,3912.3,0.4304]
[1760868872193,2.55586583,3912.6,3912.3,0.4304]
[1760868872368,2.99747379,3913.1,3912.4,0.4304]
[1760868872688,1.728,3912.8,3912.4,0.4304]
[1760868872860,2.55571834,3912.8,3912.4,0.4304]
[1760868873061,4.28359101,3913.0,3912.5,0.4304]
[1760868873374,2.55584521,3912.6,3912.5,0.4304]
[1760868873572,2.55584521,3912.6,3912.2,0.1292]
[1760868873784,2.55584521,3912.6,3912.5,0.4304]
[1760868874499,0.001,3913.2,3912.5,0.4304]
[1760868874699,2.55560144,3913.0,3912.5,0.4304]
[1760868875266,2.55552277,3913.1,3912.6,0.4697]
[1760868875575,2.55646282,3913.2,3912.7,0.4697]
[1760868875777,2.55646282,3913.2,3913.1,0.1371]
[1760868877268,0.001,3913.2,3913.1,0.1371]
[1760868877470,0.001,3913.2,3913.1,0.6068]
[1760868878306,0.001,3913.2,3913.1,0.1371]
[1760868880159,0.001,3913.2,3913.1,0.6068]
[1760868881262,0.001,3913.2,3913.1,0.734]
[1760868883166,0.001,3913.2,3913.1,3.16231864]
[1760868883367,0.001,3913.6,3913.5,2.55525744]
[1760868883557,0.001,3914.0,3913.9,2.55499629]
[1760868883956,0.001,3914.0,3913.9,3.02469629]
[1760868885490,0.001,3914.0,3913.9,8.04929629]
[1760868885693,0.001,3914.0,3913.9,8.04829629]
[1760868892169,0.001,3914.0,3913.9,8.04729629]
[1760868892486,0.001,3914.0,3913.9,5.38629629]
[1760868892668,0.001,3914.0,3913.9,8.04729629]
[1760868893302,0.001,3914.0,3913.9,8.17449629]
[1760868894098,0.001,3914.0,3913.9,8.69393712]
[1760868895302,0.001,3914.0,3913.9,8.17449629]
[1760868896579,0.001,3914.0,3913.9,8.69705827]
[1760868897595,0.001,3915.5,3914.9,3.18794366]
[1760868897785,0.001,3915.5,3915.1,2.3616]
[1760868897981,0.001,3915.5,3915.4,0.1272]
[1760868898297,0.001,3915.5,3915.4,2.7872]
[1760868898473,0.001,3915.5,3915.4,5.34121746]
[1760868898671,0.4525,3915.5,3915.4,5.34121746]
[1760868900513,0.4525,3915.5,3915.4,0.1272]
[1760868901612,0.4525,3915.5,3915.4,2.68121746]
[1760868901804,0.4525,3915.5,3915.4,0.1272]
[1760868902007,0.4525,3915.5,3915.4,2.68121746]
[1760868902917,0.001,3915.5,3915.4,5.34021746]
[1760868903268,0.4525,3915.5,3915.4,2.7862]
[1760868905421,0.001,3915.5,3915.4,2.68121746]
[1760868905707,0.001,3915.5,3915.4,11.90351746]
[1760868905891,0.001,3915.8,3915.7,2.55382179]
[1760868906067,0.001,3915.8,3915.7,3.19977039]
[1760868906271,0.001,3915.8,3915.7,3.66167039]
[1760868907275,0.001,3915.8,3915.7,3.64932179]
[1760868907492,0.001,3915.8,3915.7,3.18742179]
[1760868907678,0.6705,3915.8,3915.7,2.55382179]
[1760868907890,0.6705,3915.8,3915.4,2.659]
[1760868908095,0.4552,3915.7,3915.0,2.658]
[1760868908295,0.4552,3915.6,3915.0,2.658]
[1760868908498,0.4552,3915.5,3914.7,2.658]
[1760868908695,0.2143,3914.8,3914.1,2.658]
[1760868908910,0.2143,3914.8,3914.7,2.55447416]
[1760868909210,0.6695,3914.8,3914.7,2.55447416]
[1760868909904,0.6695,3914.8,3914.6,2.5545097]
[1760868910084,0.4292,3914.7,3914.2,2.55473627]
[1760868910282,0.4292,3914.7,3914.5,2.5545794]
[1760868910496,0.2143,3914.8,3914.6,2.55453077]
[1760868910699,0.6559,3915.1,3915.0,2.55427841]
[1760868911245,0.001,3915.8,3915.7,4.28182179]
[1760868911396,0.001,3915.8,3915.7,8.00992179]
[1760868913224,0.001,3915.8,3915.7,7.57242179]
[1760868913612,0.001,3915.8,3915.7,8.00992179]
[1760868915537,0.001,3915.8,3915.7,8.13712179]
[1760868916304,1e-08,3916.1,3916.0,3.18722614]
[1760868916614,1e-08,3916.1,3916.0,3.3399624]
[1760868916815,1e-08,3916.1,3916.0,3.7774624]
[1760868917326,1e-08,3916.1,3916.0,2.7063624]
[1760868917503,1e-08,3916.1,3916.0,3.31442614]
[1760868917909,1e-08,3916.1,3916.0,5.04242614]
[1760868919213,1e-08,3916.1,3916.0,7.69842614]
[1760868920823,1e-08,3916.1,3916.0,7.06482614]
[1760868921607,1e-08,3916.1,3916.0,7.69842614]
[1760868921842,1e-08,3916.1,3916.0,11.56542614]
[1760868924245,1e-08,3916.1,3916.0,12.00292614]
[1760868924421,1e-08,3916.1,3916.0,11.56542614]
[1760868932973,1e-08,3916.1,3916.0,8.13592614]
[1760868934762,1e-08,3916.1,3916.0,7.69842614]
[1760868934936,1e-08,3916.1,3916.0,8.16082614]
[1760868935138,1e-08,3916.1,3916.0,7.69842614]
[1760868935332,1e-08,3916.1,3916.0,8.16082614]
[1760868938303,1e-08,3916.1,3916.0,7.69842614]
[1760868939799,1e-08,3916.1,3916.0,5.04242614]
[1760868939983,0.45390001,3916.1,3916.0,7.06182614]
[1760868940177,0.45390001,3916.1,3916.0,5.33382614]
[1760868940373,0.45390001,3916.1,3916.0,5.33582614]
[1760868940568,0.45390001,3916.1,3916.0,2.7822]
[1760868941704,0.45390001,3916.1,3916.0,5.33582614]
[1760868942508,1e-08,3916.1,3916.0,7.69742614]
[1760868943768,0.45390001,3916.1,3916.0,1.5843]
[1760868943967,0.45390001,3916.1,3915.6,0.002]
[1760868944202,0.2152,3915.7,3915.6,0.002]
[1760868944379,0.2152,3915.7,3915.6,2.55588701]
[1760868944579,0.4539,3916.0,3915.6,0.002]
[1760868944778,1e-08,3916.1,3915.6,0.002]
[1760868944779,0.2152,3915.8,3915.6,0.002]